[Event "Titled Tuesday Blitz May 16 Late 2023"]
[White "Grigoriants, Sergey"]
[Black "De La Colina, Nicolas"]
[WhiteFideId "4130804"]
[BlackFideId "30946921"]
[WhiteElo "2502"]
[BlackElo "2046"]
[Result "1-0"]
[Round "06"]
[TimeControl "180+2"]
[Date "2023.05.16"]
[WhiteClock "0:00:05"]
[BlackClock "0:00:00"]

1. d4 {[%clk 0:02:56]}  Nf6 {[%clk 0:02:59]} 2. c4 {[%clk 0:02:56]}  e6 {[%clk 0:02:58]} 3. Nf3 {[%clk 0:02:53]}  b6 {[%clk 0:02:56]} 4. g3 {[%clk 0:02:50]}  Bb7 {[%clk 0:02:55]} 5. Bg2 {[%clk 0:02:50]}  Bb4+ {[%clk 0:02:51]} 6. Bd2 {[%clk 0:02:43]}  Be7 {[%clk 0:02:43]} 7. Nc3 {[%clk 0:02:40]}  d5 {[%clk 0:02:39]} 8. cxd5 {[%clk 0:02:38]}  Nxd5 {[%clk 0:02:36]} 9. O-O {[%clk 0:02:28]}  O-O {[%clk 0:02:27]} 10. Qb3 {[%clk 0:02:27]}  c5 {[%clk 0:02:23]} 11. dxc5 {[%clk 0:02:27]}  Bxc5 {[%clk 0:02:24]} 12. Ne5 {[%clk 0:02:06]}  Nd7 {[%clk 0:01:50]} 13. Nd3 {[%clk 0:01:33]}  Nxc3 {[%clk 0:01:35]} 14. Bxc3 {[%clk 0:01:33]}  Bxg2 {[%clk 0:01:34]} 15. Kxg2 {[%clk 0:01:34]}  Qc7 {[%clk 0:01:15]} 16. Rfd1 {[%clk 0:01:22]}  Rfd8 {[%clk 0:01:12]} 17. Qa4 {[%clk 0:01:19]}  Be7 {[%clk 0:01:00]} 18. Qe4 {[%clk 0:00:58]}  Nf6 {[%clk 0:00:48]} 19. Qf3 {[%clk 0:00:55]}  Nd5 {[%clk 0:00:47]} 20. Rac1 {[%clk 0:00:54]}  Rac8 {[%clk 0:00:35]} 21. Bxg7 {[%clk 0:00:48]}  Kxg7 {[%clk 0:00:27]} 22. Rxc7 {[%clk 0:00:47]}  Rxc7 {[%clk 0:00:28]} 23. Ne5 {[%clk 0:00:19]}  Bf6 {[%clk 0:00:20]} 24. Ng4 {[%clk 0:00:12]}  Be7 {[%clk 0:00:19]} 25. e4 {[%clk 0:00:12]}  Nf6 {[%clk 0:00:11]} 26. Rxd8 {[%clk 0:00:12]}  Bxd8 {[%clk 0:00:10]} 27. e5 {[%clk 0:00:09]}  Nxg4 {[%clk 0:00:10]} 28. Qxg4+ {[%clk 0:00:09]}  Kh8 {[%clk 0:00:06]} 29. h4 {[%clk 0:00:09]}  Be7 {[%clk 0:00:05]} 30. Qf3 {[%clk 0:00:08]}  Bc5 {[%clk 0:00:04]} 31. a3 {[%clk 0:00:06]}  Kg8 {[%clk 0:00:04]} 32. b4 {[%clk 0:00:05]}  Bf8 {[%clk 0:00:04]} 33. h5 {[%clk 0:00:05]}  h6 {[%clk 0:00:05]} 34. Qe4 {[%clk 0:00:05]}  Bg7 {[%clk 0:00:05]} 35. f4 {[%clk 0:00:04]}  Rd7 {[%clk 0:00:06]} 36. a4 {[%clk 0:00:04]}  Rd5 {[%clk 0:00:05]} 37. Kh3 {[%clk 0:00:05]}  a5 {[%clk 0:00:05]} 38. bxa5 {[%clk 0:00:04]}  bxa5 {[%clk 0:00:06]} 39. Qc4 {[%clk 0:00:04]}  Bf8 {[%clk 0:00:05]} 40. Kg4 {[%clk 0:00:05]}  Bg7 {[%clk 0:00:02]} 41. Qc7 {[%clk 0:00:04]}  Bf8 {[%clk 0:00:02]} 42. Qb7 {[%clk 0:00:04]}  Bb4 {[%clk 0:00:01]} 43. Qa8+ {[%clk 0:00:04]}  Bf8 {[%clk 0:00:02]} 44. Kf3 {[%clk 0:00:03]}  Kg7 {[%clk 0:00:03]} 45. g4 {[%clk 0:00:04]}  Kg8 {[%clk 0:00:03]} 46. Ke4 {[%clk 0:00:04]}  Kg7 {[%clk 0:00:04]} 47. f5 {[%clk 0:00:05]}  Bb4 {[%clk 0:00:04]} 48. f6+ {[%clk 0:00:05]}  Kh7 {[%clk 0:00:00]} 49. Qe8 {[%clk 0:00:05]} 1-0


[Site "https://www.chess.com"]

[Event "Titled Tuesday Blitz May 16 Late 2023"]
[White "Arabidze, Meri"]
[Black "Mekhitarian, Krikor Sevag"]
[WhiteFideId "13604040"]
[BlackFideId "2107660"]
[WhiteElo "2405"]
[BlackElo "2604"]
[Result "0-1"]
[Round "06"]
[TimeControl "180+2"]
[Date "2023.05.16"]
[WhiteClock "0:00:29"]
[BlackClock "0:00:09"]

1. Nf3 {[%clk 0:03:00]}  d5 {[%clk 0:02:59]} 2. d4 {[%clk 0:03:00]}  Nf6 {[%clk 0:02:58]} 3. c4 {[%clk 0:03:00]}  c6 {[%clk 0:02:58]} 4. e3 {[%clk 0:02:58]}  Bf5 {[%clk 0:02:57]} 5. Nbd2 {[%clk 0:02:55]}  e6 {[%clk 0:02:51]} 6. b3 {[%clk 0:02:55]}  c5 {[%clk 0:02:28]} 7. Bb2 {[%clk 0:02:54]}  cxd4 {[%clk 0:02:27]} 8. Nxd4 {[%clk 0:02:55]}  Bg6 {[%clk 0:02:26]} 9. cxd5 {[%clk 0:02:52]}  Qxd5 {[%clk 0:02:02]} 10. Bb5+ {[%clk 0:02:47]}  Nbd7 {[%clk 0:02:02]} 11. O-O {[%clk 0:02:45]}  a6 {[%clk 0:02:01]} 12. Bc4 {[%clk 0:02:44]}  Qd6 {[%clk 0:01:57]} 13. Qf3 {[%clk 0:02:37]}  Rb8 {[%clk 0:01:52]} 14. Rfd1 {[%clk 0:02:31]}  Bh5 {[%clk 0:01:39]} 15. Ne4 {[%clk 0:02:23]}  Qb6 {[%clk 0:01:23]} 16. Qg3 {[%clk 0:02:13]}  Nxe4 {[%clk 0:01:01]} 17. Qh4 {[%clk 0:01:52]}  Bxd1 {[%clk 0:00:56]} 18. Rxd1 {[%clk 0:01:53]}  Nef6 {[%clk 0:00:50]} 19. Qg3 {[%clk 0:01:49]}  Rc8 {[%clk 0:00:46]} 20. h4 {[%clk 0:01:41]}  Bd6 {[%clk 0:00:33]} 21. Qh3 {[%clk 0:01:25]}  Rxc4 {[%clk 0:00:30]} 22. bxc4 {[%clk 0:01:25]}  Qxb2 {[%clk 0:00:31]} 23. Nf3 {[%clk 0:01:03]}  Qb6 {[%clk 0:00:23]} 24. h5 {[%clk 0:01:01]}  h6 {[%clk 0:00:22]} 25. g4 {[%clk 0:00:55]}  Be7 {[%clk 0:00:18]} 26. Qg3 {[%clk 0:00:53]}  O-O {[%clk 0:00:16]} 27. g5 {[%clk 0:00:51]}  hxg5 {[%clk 0:00:17]} 28. Qxg5 {[%clk 0:00:45]}  Qc5 {[%clk 0:00:16]} 29. Qg2 {[%clk 0:00:42]}  Qxh5 {[%clk 0:00:15]} 30. Rd4 {[%clk 0:00:42]}  Qg6 {[%clk 0:00:14]} 31. Ng5 {[%clk 0:00:41]}  Nh7 {[%clk 0:00:13]} 32. Nxh7 {[%clk 0:00:38]}  Qxg2+ {[%clk 0:00:12]} 33. Kxg2 {[%clk 0:00:29]}  Rd8 {[%clk 0:00:09]} 0-1


[Site "https://www.chess.com"]

[Event "Titled Tuesday Blitz May 16 Late 2023"]
[White "Bazeev, German"]
[Black "Iliaguev, Nisim"]
[WhiteFideId "24119350"]
[BlackFideId "2817276"]
[WhiteElo "2466"]
[BlackElo "2241"]
[Result "0-1"]
[Round "06"]
[TimeControl "180+2"]
[Date "2023.05.16"]
[WhiteClock "0:00:02"]
[BlackClock "0:00:49"]

1. c4 {[%clk 0:02:40]}  g6 {[%clk 0:02:58]} 2. Nc3 {[%clk 0:02:40]}  c5 {[%clk 0:02:59]} 3. g3 {[%clk 0:02:40]}  Bg7 {[%clk 0:02:59]} 4. Bg2 {[%clk 0:02:41]}  Nc6 {[%clk 0:03:00]} 5. h4 {[%clk 0:02:42]}  h5 {[%clk 0:03:00]} 6. Nh3 {[%clk 0:02:42]}  Nf6 {[%clk 0:02:59]} 7. Nf4 {[%clk 0:02:42]}  O-O {[%clk 0:02:58]} 8. a3 {[%clk 0:02:42]}  b6 {[%clk 0:02:53]} 9. b4 {[%clk 0:02:41]}  cxb4 {[%clk 0:02:53]} 10. axb4 {[%clk 0:02:41]}  Bb7 {[%clk 0:02:54]} 11. O-O {[%clk 0:02:31]}  d6 {[%clk 0:02:50]} 12. Bb2 {[%clk 0:02:22]}  Qd7 {[%clk 0:02:49]} 13. b5 {[%clk 0:02:10]}  Ne5 {[%clk 0:02:49]} 14. d3 {[%clk 0:02:03]}  Bxg2 {[%clk 0:02:48]} 15. Kxg2 {[%clk 0:02:04]}  Neg4 {[%clk 0:02:47]} 16. Qd2 {[%clk 0:02:00]}  e6 {[%clk 0:02:44]} 17. f3 {[%clk 0:01:43]}  Ne5 {[%clk 0:02:40]} 18. e4 {[%clk 0:01:43]}  Qb7 {[%clk 0:02:35]} 19. Ra6 {[%clk 0:01:37]}  Rfc8 {[%clk 0:02:29]} 20. Rfa1 {[%clk 0:01:34]}  Nfd7 {[%clk 0:02:22]} 21. Qe2 {[%clk 0:01:16]}  Nc5 {[%clk 0:02:19]} 22. R6a3 {[%clk 0:00:44]}  Ncxd3 {[%clk 0:01:46]} 23. Nxd3 {[%clk 0:00:41]}  Nxc4 {[%clk 0:01:43]} 24. Nd1 {[%clk 0:00:38]}  Nxa3 {[%clk 0:01:36]} 25. Rxa3 {[%clk 0:00:33]}  Bxb2 {[%clk 0:01:36]} 26. Qxb2 {[%clk 0:00:34]}  a5 {[%clk 0:01:29]} 27. N1f2 {[%clk 0:00:31]}  e5 {[%clk 0:01:19]} 28. g4 {[%clk 0:00:27]}  hxg4 {[%clk 0:01:14]} 29. Nxg4 {[%clk 0:00:28]}  Qe7 {[%clk 0:01:09]} 30. Qf2 {[%clk 0:00:26]}  Kg7 {[%clk 0:01:07]} 31. Ra2 {[%clk 0:00:22]}  f5 {[%clk 0:01:03]} 32. exf5 {[%clk 0:00:20]}  gxf5 {[%clk 0:01:04]} 33. Ne3 {[%clk 0:00:21]}  Qe6 {[%clk 0:00:59]} 34. Re2 {[%clk 0:00:19]}  Rc3 {[%clk 0:00:55]} 35. Qg3+ {[%clk 0:00:11]}  Kh7 {[%clk 0:00:50]} 36. Nf2 {[%clk 0:00:02]}  Rg8 {[%clk 0:00:49]} 0-1


[Site "https://www.chess.com"]

[Event "Titled Tuesday Blitz May 16 Late 2023"]
[White "Tisaj, Domen"]
[Black "Samsonkin, Artiom"]
[WhiteFideId "14628708"]
[BlackFideId "13503111"]
[WhiteElo "2340"]
[BlackElo "2524"]
[Result "0-1"]
[Round "06"]
[TimeControl "180+2"]
[Date "2023.05.16"]
[WhiteClock "0:00:12"]
[BlackClock "0:00:22"]

1. e4 {[%clk 0:03:00]}  e6 {[%clk 0:02:57]} 2. d4 {[%clk 0:03:01]}  d5 {[%clk 0:02:58]} 3. exd5 {[%clk 0:03:01]}  Qxd5 {[%clk 0:02:57]} 4. Nf3 {[%clk 0:03:02]}  Nf6 {[%clk 0:02:55]} 5. Nc3 {[%clk 0:03:02]}  Bb4 {[%clk 0:02:56]} 6. Bd3 {[%clk 0:03:01]}  b6 {[%clk 0:02:55]} 7. O-O {[%clk 0:03:01]}  Bxc3 {[%clk 0:02:56]} 8. bxc3 {[%clk 0:03:01]}  Bb7 {[%clk 0:02:57]} 9. Re1 {[%clk 0:03:01]}  Nbd7 {[%clk 0:02:56]} 10. c4 {[%clk 0:02:59]}  Qh5 {[%clk 0:02:56]} 11. Bf4 {[%clk 0:02:47]}  c5 {[%clk 0:02:39]} 12. d5 {[%clk 0:02:39]}  O-O {[%clk 0:02:38]} 13. Bd6 {[%clk 0:02:25]}  Rfe8 {[%clk 0:02:36]} 14. dxe6 {[%clk 0:02:21]}  Rxe6 {[%clk 0:02:20]} 15. Rxe6 {[%clk 0:02:19]}  fxe6 {[%clk 0:02:08]} 16. Qe2 {[%clk 0:02:13]}  Re8 {[%clk 0:01:38]} 17. Re1 {[%clk 0:01:52]}  e5 {[%clk 0:01:27]} 18. Nxe5 {[%clk 0:01:21]}  Nxe5 {[%clk 0:01:28]} 19. Bxe5 {[%clk 0:01:14]}  Ng4 {[%clk 0:01:23]} 20. Qd1 {[%clk 0:00:36]}  Rxe5 {[%clk 0:01:17]} 21. h3 {[%clk 0:00:18]}  Rxe1+ {[%clk 0:01:13]} 22. Qxe1 {[%clk 0:00:19]}  Qe5 {[%clk 0:01:11]} 23. Qd2 {[%clk 0:00:06]}  Qh2+ {[%clk 0:01:08]} 24. Kf1 {[%clk 0:00:06]}  Qxg2+ {[%clk 0:01:08]} 25. Ke1 {[%clk 0:00:06]}  Qg1+ {[%clk 0:01:08]} 26. Bf1 {[%clk 0:00:07]}  Qxf2+ {[%clk 0:00:38]} 27. Qxf2 {[%clk 0:00:08]}  Nxf2 {[%clk 0:00:39]} 28. Kxf2 {[%clk 0:00:09]}  Kf7 {[%clk 0:00:39]} 29. Ke3 {[%clk 0:00:09]}  Kf6 {[%clk 0:00:39]} 30. Kf4 {[%clk 0:00:09]}  g5+ {[%clk 0:00:35]} 31. Ke3 {[%clk 0:00:10]}  Ke5 {[%clk 0:00:35]} 32. Bd3 {[%clk 0:00:09]}  h5 {[%clk 0:00:35]} 33. Be2 {[%clk 0:00:09]}  Bc8 {[%clk 0:00:35]} 34. Bxh5 {[%clk 0:00:06]}  Bxh3 {[%clk 0:00:36]} 35. c3 {[%clk 0:00:06]}  Be6 {[%clk 0:00:36]} 36. Be2 {[%clk 0:00:06]}  g4 {[%clk 0:00:36]} 37. Bd3 {[%clk 0:00:06]}  a5 {[%clk 0:00:32]} 38. a3 {[%clk 0:00:05]}  Bf5 {[%clk 0:00:21]} 39. Be2 {[%clk 0:00:05]}  g3 {[%clk 0:00:18]} 40. Kf3 {[%clk 0:00:01]}  Bg4+ {[%clk 0:00:19]} 41. Kxg3 {[%clk 0:00:02]}  Bxe2 {[%clk 0:00:18]} 42. Kf2 {[%clk 0:00:02]}  Bxc4 {[%clk 0:00:18]} 43. Ke3 {[%clk 0:00:03]}  a4 {[%clk 0:00:18]} 44. Kd2 {[%clk 0:00:04]}  Ke4 {[%clk 0:00:18]} 45. Kc2 {[%clk 0:00:05]}  Ke3 {[%clk 0:00:19]} 46. Kb2 {[%clk 0:00:06]}  Kd2 {[%clk 0:00:19]} 47. Kb1 {[%clk 0:00:06]}  Kxc3 {[%clk 0:00:20]} 48. Ka1 {[%clk 0:00:07]}  Kb3 {[%clk 0:00:20]} 49. Kb1 {[%clk 0:00:08]}  Kxa3 {[%clk 0:00:21]} 50. Ka1 {[%clk 0:00:09]}  b5 {[%clk 0:00:21]} 51. Kb1 {[%clk 0:00:09]}  b4 {[%clk 0:00:22]} 52. Ka1 {[%clk 0:00:10]}  b3 {[%clk 0:00:22]} 53. Kb1 {[%clk 0:00:10]}  Bd3+ {[%clk 0:00:22]} 54. Kc1 {[%clk 0:00:11]}  b2+ {[%clk 0:00:22]} 55. Kd2 {[%clk 0:00:11]}  b1=Q {[%clk 0:00:22]} 56. Kc3 {[%clk 0:00:12]}  Qc2# {[%clk 0:00:22]} 0-1


[Site "https://www.chess.com"]

[Event "Titled Tuesday Blitz May 16 Late 2023"]
[White "Bordi, Kevin"]
[Black "Schnaider, Ilan"]
[WhiteFideId "621862"]
[BlackFideId "169013"]
[WhiteElo "2803"]
[BlackElo "2224"]
[Result "1/2-1/2"]
[Round "06"]
[TimeControl "180+2"]
[Date "2023.05.16"]
[WhiteClock "0:01:31"]
[BlackClock "0:00:19"]

1. e4 {[%clk 0:03:00]}  e5 {[%clk 0:02:59]} 2. Nf3 {[%clk 0:03:01]}  Nc6 {[%clk 0:03:00]} 3. d4 {[%clk 0:03:01]}  exd4 {[%clk 0:03:00]} 4. Nxd4 {[%clk 0:03:02]}  Nf6 {[%clk 0:03:00]} 5. Nxc6 {[%clk 0:03:02]}  bxc6 {[%clk 0:03:01]} 6. e5 {[%clk 0:03:03]}  Qe7 {[%clk 0:02:59]} 7. Qe2 {[%clk 0:03:03]}  Nd5 {[%clk 0:03:00]} 8. c4 {[%clk 0:03:03]}  Ba6 {[%clk 0:03:00]} 9. b3 {[%clk 0:03:03]}  g6 {[%clk 0:02:57]} 10. g3 {[%clk 0:03:04]}  Bg7 {[%clk 0:02:57]} 11. Bb2 {[%clk 0:03:04]}  O-O {[%clk 0:02:57]} 12. Bg2 {[%clk 0:03:05]}  Rae8 {[%clk 0:02:56]} 13. O-O {[%clk 0:03:05]}  Bxe5 {[%clk 0:02:54]} 14. Qxe5 {[%clk 0:03:06]}  Qxe5 {[%clk 0:02:54]} 15. Bxe5 {[%clk 0:03:07]}  Rxe5 {[%clk 0:02:55]} 16. cxd5 {[%clk 0:03:08]}  Bxf1 {[%clk 0:02:55]} 17. Kxf1 {[%clk 0:03:09]}  cxd5 {[%clk 0:02:55]} 18. Nd2 {[%clk 0:03:10]}  c6 {[%clk 0:02:55]} 19. Rc1 {[%clk 0:03:10]}  Rfe8 {[%clk 0:02:52]} 20. Bf3 {[%clk 0:03:09]}  a5 {[%clk 0:02:46]} 21. h4 {[%clk 0:03:07]}  h5 {[%clk 0:02:45]} 22. a4 {[%clk 0:02:54]}  Kf8 {[%clk 0:02:08]} 23. Bd1 {[%clk 0:02:54]}  Ke7 {[%clk 0:01:52]} 24. Nf3 {[%clk 0:02:54]}  Re4 {[%clk 0:01:49]} 25. Rc5 {[%clk 0:02:54]}  Ra8 {[%clk 0:01:44]} 26. Ng5 {[%clk 0:02:51]}  Rd4 {[%clk 0:01:41]} 27. Ke2 {[%clk 0:02:43]}  Kd6 {[%clk 0:01:37]} 28. Rc1 {[%clk 0:02:32]}  Re8+ {[%clk 0:01:35]} 29. Kf1 {[%clk 0:02:32]}  f6 {[%clk 0:01:34]} 30. Nf3 {[%clk 0:02:32]}  Rd3 {[%clk 0:01:33]} 31. Be2 {[%clk 0:02:30]}  Rxb3 {[%clk 0:01:31]} 32. Bd1 {[%clk 0:02:07]}  Rb4 {[%clk 0:01:28]} 33. Ne1 {[%clk 0:02:03]}  Reb8 {[%clk 0:01:25]} 34. Bc2 {[%clk 0:02:01]}  Rc4 {[%clk 0:01:24]} 35. Rd1 {[%clk 0:01:59]}  f5 {[%clk 0:01:20]} 36. Rd2 {[%clk 0:01:50]}  Rb2 {[%clk 0:01:19]} 37. Re2 {[%clk 0:01:50]}  Rc3 {[%clk 0:01:11]} 38. Rd2 {[%clk 0:01:46]}  c5 {[%clk 0:01:06]} 39. Ke2 {[%clk 0:01:44]}  Ra3 {[%clk 0:00:59]} 40. Nd3 {[%clk 0:01:38]}  Rba2 {[%clk 0:00:49]} 41. Nc1 {[%clk 0:01:38]}  Rb2 {[%clk 0:00:43]} 42. Nd3 {[%clk 0:01:38]}  Rb6 {[%clk 0:00:38]} 43. Nf4 {[%clk 0:01:37]}  d4 {[%clk 0:00:38]} 44. Nxg6 {[%clk 0:01:37]}  Rb2 {[%clk 0:00:36]} 45. Nf4 {[%clk 0:01:35]}  Raa2 {[%clk 0:00:33]} 46. Kd1 {[%clk 0:01:31]}  Ra1+ {[%clk 0:00:27]} 47. Ke2 {[%clk 0:01:31]}  Raa2 {[%clk 0:00:24]} 48. Kd1 {[%clk 0:01:31]}  Ra1+ {[%clk 0:00:18]} 49. Ke2 {[%clk 0:01:31]}  Raa2 {[%clk 0:00:19]} 1/2-1/2


[Site "https://www.chess.com"]

[Event "Titled Tuesday Blitz May 16 Late 2023"]
[White "Tanenbaum, Zachary"]
[Black "Mirimanian, Hayk"]
[WhiteFideId "2060850"]
[BlackFideId "4700180"]
[WhiteElo "2175"]
[BlackElo "2280"]
[Result "0-1"]
[Round "06"]
[TimeControl "180+2"]
[Date "2023.05.16"]
[WhiteClock "0:00:16"]
[BlackClock "0:00:22"]

1. e4 {[%clk 0:03:00]}  c5 {[%clk 0:02:58]} 2. Nf3 {[%clk 0:03:00]}  d6 {[%clk 0:02:56]} 3. d4 {[%clk 0:03:01]}  cxd4 {[%clk 0:02:55]} 4. Nxd4 {[%clk 0:03:01]}  Nf6 {[%clk 0:02:56]} 5. Nc3 {[%clk 0:03:02]}  a6 {[%clk 0:02:56]} 6. Be3 {[%clk 0:03:02]}  e5 {[%clk 0:02:42]} 7. Nb3 {[%clk 0:03:01]}  Be6 {[%clk 0:02:40]} 8. f4 {[%clk 0:03:01]}  exf4 {[%clk 0:02:36]} 9. Bxf4 {[%clk 0:03:01]}  Nc6 {[%clk 0:02:35]} 10. Qe2 {[%clk 0:03:01]}  Be7 {[%clk 0:02:32]} 11. h3 {[%clk 0:03:01]}  Ne5 {[%clk 0:02:22]} 12. O-O-O {[%clk 0:03:01]}  Qc7 {[%clk 0:02:20]} 13. Kb1 {[%clk 0:02:59]}  O-O {[%clk 0:02:18]} 14. g4 {[%clk 0:02:58]}  b5 {[%clk 0:02:16]} 15. g5 {[%clk 0:02:57]}  Nfd7 {[%clk 0:02:15]} 16. Nd5 {[%clk 0:02:55]}  Bxd5 {[%clk 0:02:12]} 17. exd5 {[%clk 0:02:56]}  Rfe8 {[%clk 0:02:10]} 18. h4 {[%clk 0:02:54]}  a5 {[%clk 0:02:07]} 19. Nd4 {[%clk 0:02:52]}  b4 {[%clk 0:01:56]} 20. h5 {[%clk 0:02:44]}  a4 {[%clk 0:01:51]} 21. g6 {[%clk 0:02:39]}  Bf6 {[%clk 0:01:21]} 22. gxf7+ {[%clk 0:02:28]}  Nxf7 {[%clk 0:01:18]} 23. Ne6 {[%clk 0:02:22]}  Qc8 {[%clk 0:01:14]} 24. Qg2 {[%clk 0:02:14]}  b3 {[%clk 0:01:05]} 25. cxb3 {[%clk 0:02:13]}  axb3 {[%clk 0:01:03]} 26. axb3 {[%clk 0:02:12]}  Qb8 {[%clk 0:00:54]} 27. Bc4 {[%clk 0:02:02]}  Qa7 {[%clk 0:00:46]} 28. Kc2 {[%clk 0:01:52]}  Bxb2 {[%clk 0:00:45]} 29. b4 {[%clk 0:01:02]}  Rec8 {[%clk 0:00:41]} 30. Kxb2 {[%clk 0:00:32]}  Qa3+ {[%clk 0:00:38]} 31. Kb1 {[%clk 0:00:25]}  Qa1+ {[%clk 0:00:37]} 32. Kc2 {[%clk 0:00:26]}  Qa2+ {[%clk 0:00:30]} 33. Kd3 {[%clk 0:00:19]}  Ra3+ {[%clk 0:00:27]} 34. Kd4 {[%clk 0:00:16]}  Qxc4# {[%clk 0:00:22]} 0-1


[Site "https://www.chess.com"]

[Event "Titled Tuesday Blitz May 16 Late 2023"]
[White "Domingo Nunez, Alejandro"]
[Black "Lazavik, Denis"]
[WhiteFideId "22245561"]
[BlackFideId "13515110"]
[WhiteElo "2291"]
[BlackElo "2560"]
[Result "0-1"]
[Round "06"]
[TimeControl "180+2"]
[Date "2023.05.16"]
[WhiteClock "0:00:00"]
[BlackClock "0:00:29"]

1. Nf3 {[%clk 0:02:57]}  d5 {[%clk 0:02:59]} 2. g3 {[%clk 0:02:57]}  g6 {[%clk 0:02:59]} 3. Bg2 {[%clk 0:02:57]}  Bg7 {[%clk 0:03:00]} 4. d4 {[%clk 0:02:58]}  Nf6 {[%clk 0:02:59]} 5. O-O {[%clk 0:02:58]}  O-O {[%clk 0:02:59]} 6. c4 {[%clk 0:02:59]}  c6 {[%clk 0:02:59]} 7. Qb3 {[%clk 0:02:58]}  a5 {[%clk 0:02:56]} 8. cxd5 {[%clk 0:02:58]}  a4 {[%clk 0:02:54]} 9. Qd1 {[%clk 0:02:55]}  cxd5 {[%clk 0:02:53]} 10. Nc3 {[%clk 0:02:55]}  Qa5 {[%clk 0:02:53]} 11. Bd2 {[%clk 0:02:55]}  Nc6 {[%clk 0:02:51]} 12. Rc1 {[%clk 0:02:53]}  Qa6 {[%clk 0:02:44]} 13. Ne5 {[%clk 0:02:33]}  Nxd4 {[%clk 0:02:38]} 14. Bf4 {[%clk 0:01:36]}  Ne6 {[%clk 0:02:34]} 15. Nxd5 {[%clk 0:01:35]}  Nxd5 {[%clk 0:02:32]} 16. Bxd5 {[%clk 0:01:33]}  Nxf4 {[%clk 0:02:29]} 17. gxf4 {[%clk 0:01:34]}  Bh3 {[%clk 0:02:29]} 18. Re1 {[%clk 0:01:32]}  Bxe5 {[%clk 0:02:18]} 19. fxe5 {[%clk 0:01:31]}  Rad8 {[%clk 0:02:18]} 20. Rc3 {[%clk 0:01:20]}  Bg4 {[%clk 0:01:21]} 21. Rd3 {[%clk 0:01:12]}  Qa5 {[%clk 0:01:11]} 22. Rd4 {[%clk 0:00:51]}  e6 {[%clk 0:01:02]} 23. Rxa4 {[%clk 0:00:34]}  Qc7 {[%clk 0:00:34]} 24. Rxg4 {[%clk 0:00:20]}  Rxd5 {[%clk 0:00:34]} 25. Qb3 {[%clk 0:00:20]}  Qxe5 {[%clk 0:00:31]} 26. Qxb7 {[%clk 0:00:17]}  Rb8 {[%clk 0:00:30]} 27. Qa7 {[%clk 0:00:15]}  Rxb2 {[%clk 0:00:30]} 28. Qa6 {[%clk 0:00:06]}  Rdd2 {[%clk 0:00:29]} 29. Qc8+ {[%clk 0:00:00]}  Kg7 {[%clk 0:00:29]} 0-1


[Site "https://www.chess.com"]

[Event "Titled Tuesday Blitz May 16 Late 2023"]
[White "Janaszak, Dawid"]
[Black "Hambleton, Aman"]
[WhiteFideId "1119206"]
[BlackFideId "2606577"]
[WhiteElo "2220"]
[BlackElo "2511"]
[Result "0-1"]
[Round "06"]
[TimeControl "180+2"]
[Date "2023.05.16"]
[WhiteClock "0:00:00"]
[BlackClock "0:00:03"]

1. e4 {[%clk 0:03:00]}  c5 {[%clk 0:02:56]} 2. Nc3 {[%clk 0:03:00]}  e6 {[%clk 0:02:56]} 3. Nge2 {[%clk 0:02:55]}  a6 {[%clk 0:02:56]} 4. g3 {[%clk 0:02:52]}  b5 {[%clk 0:02:54]} 5. Bg2 {[%clk 0:02:52]}  Bb7 {[%clk 0:02:55]} 6. O-O {[%clk 0:02:51]}  Nf6 {[%clk 0:02:55]} 7. d3 {[%clk 0:02:31]}  d5 {[%clk 0:02:55]} 8. e5 {[%clk 0:02:31]}  Nfd7 {[%clk 0:02:54]} 9. f4 {[%clk 0:02:31]}  Nc6 {[%clk 0:02:54]} 10. a4 {[%clk 0:02:22]}  b4 {[%clk 0:02:53]} 11. Nb1 {[%clk 0:02:22]}  Be7 {[%clk 0:02:43]} 12. c3 {[%clk 0:02:20]}  bxc3 {[%clk 0:02:43]} 13. bxc3 {[%clk 0:02:20]}  Na5 {[%clk 0:02:41]} 14. d4 {[%clk 0:02:17]}  g6 {[%clk 0:02:42]} 15. Nd2 {[%clk 0:02:13]}  Nb6 {[%clk 0:02:29]} 16. Rb1 {[%clk 0:02:04]}  Bc6 {[%clk 0:02:29]} 17. f5 {[%clk 0:01:54]}  Bxa4 {[%clk 0:02:22]} 18. Qe1 {[%clk 0:01:54]}  gxf5 {[%clk 0:02:14]} 19. g4 {[%clk 0:01:34]}  fxg4 {[%clk 0:01:34]} 20. Qf2 {[%clk 0:01:33]}  Bc2 {[%clk 0:01:34]} 21. Qxf7+ {[%clk 0:01:20]}  Kd7 {[%clk 0:01:34]} 22. Nf4 {[%clk 0:01:13]}  Bf5 {[%clk 0:01:18]} 23. Rxb6 {[%clk 0:01:04]}  Qxb6 {[%clk 0:00:38]} 24. Nxd5 {[%clk 0:01:04]}  exd5 {[%clk 0:00:38]} 25. Qxd5+ {[%clk 0:00:50]}  Kc7 {[%clk 0:00:37]} 26. Rxf5 {[%clk 0:00:49]}  Raf8 {[%clk 0:00:32]} 27. Rf7 {[%clk 0:00:44]}  Rxf7 {[%clk 0:00:25]} 28. Qxf7 {[%clk 0:00:45]}  Kd8 {[%clk 0:00:25]} 29. Ba3 {[%clk 0:00:22]}  Rf8 {[%clk 0:00:18]} 30. Qd5+ {[%clk 0:00:21]}  Kc7 {[%clk 0:00:19]} 31. dxc5 {[%clk 0:00:17]}  Qc6 {[%clk 0:00:04]} 32. Qd3 {[%clk 0:00:13]}  Bxc5+ {[%clk 0:00:04]} 33. Kh1 {[%clk 0:00:12]}  Qb6 {[%clk 0:00:02]} 34. Qxh7+ {[%clk 0:00:12]}  Kb8 {[%clk 0:00:02]} 35. e6 {[%clk 0:00:06]}  Bxa3 {[%clk 0:00:02]} 36. e7 {[%clk 0:00:06]}  Re8 {[%clk 0:00:03]} 37. Qf7 {[%clk 0:00:05]}  Rxe7 {[%clk 0:00:03]} 38. Qf8+ {[%clk 0:00:05]}  Kc7 {[%clk 0:00:03]} 39. Qf4+ {[%clk 0:00:03]}  Bd6 {[%clk 0:00:03]} 40. Qxg4 {[%clk 0:00:03]}  Re1+ {[%clk 0:00:03]} 41. Nf1 {[%clk 0:00:03]}  Qf2 {[%clk 0:00:04]} 42. Qg7+ {[%clk 0:00:00]}  Be7 {[%clk 0:00:03]} 0-1


[Site "https://www.chess.com"]